[Event "IV Estrellas 2022"]
[Site "La Palma"]
[Date "2022.08.11"]
[Round "8.4"]
[White "Garcia Blanco, Omar"]
[Black "Del Rio De Angelis, Salvador G."]
[Result "0-1"]
[ECO "B28"]
[WhiteElo "2352"]
[BlackElo "2442"]
[Annotator "TA"]
[PlyCount "122"]
[EventDate "2022.08.06"]
[EventType "swiss"]
[EventCountry "ESP"]
[SourceTitle "playchess.com"]
[Source "ChessBase"]
[SourceQuality "1"]
[TimeControl "5400+30"]

{[%evp 13,122,36,26,11,5,7,19,14,17,0,20,0,0,0,0,0,0,0,0,-7,0,-29,-27,-26,0,0,0,-2,-10,-9,-8,-10,-9,-4,-10,-1,0,-15,-16,-16,-18,-20,-10,-20,-10,-15,0,-14,-22,-29,-21,-42,-43,-47,-40,-45,-32,-40,-33,-33,-20,-80,-75,-91,-91,-87,-99,-97,-91,-86,-86,-131,-112,-115,-92,-371,-339,-464,-403,-514,-509,-540,-539,-691,-693,-685,-671,-686,-670,-528,-528,-665,-572,-932,-921,-1409,-877,-1826,-1811,-12841,-12841,-12843,-12843,-12844,-12844,-29990,-6203,-29991,-29992,-29994,-29995]} 1. e4 {[%emt 0:00:03]} c5 {[%emt 0:01:18]} 2. c3 {[%emt 0:00:44]} d5 {[%emt 0:00:24]} 3. exd5 {[%emt 0:00:06]} Qxd5 {[%emt 0:00:05]} 4. d4 {[%emt 0:00:07]} e6 {[%emt 0:00:19]} 5. Nf3 {[%emt 0:00:24]} a6 {[%emt 0:00:07]} 6. Bd3 {[%emt 0:02:27]} Nf6 {[%emt 0:00:35]} 7. O-O {[%emt 0:00:29]} Be7 {[%emt 0:00:46]} 8. Be3 {[%emt 0:01:04] B28: Sicilian: 2 Nf3 a6 (O'Kelly Variation).} Nbd7 {[%emt 0:01:05]} 9. Qe2 {[%emt 0:02:39]} O-O {[%emt 0:03:44] [#]} 10. Nbd2 $146 {[%emt 0:02:27] The position is equal.} ({Predecessor:} 10. Rd1 Qc6 11. Nbd2 b5 12. a4 c4 13. Bc2 Bb7 14. Nf1 Rfe8 15. Ng3 Nb6 16. a5 {1-0 (38) Plotkin,V (2309)-Beider,A Windsor 2016}) 10... b6 {[%emt 0:03:56]} 11. Nc4 {[%emt 0:09:43]} Bb7 {[%emt 0:04:49]} 12. Nce5 {[%emt 0:03:54]} cxd4 {[%emt 0:16:33]} 13. Bxd4 {[%emt 0:02:41]} Nxe5 {[%emt 0:02:45]} 14. Bxe5 {[%emt 0:00:21]} Rfd8 {[%emt 0:04:38]} 15. Rfd1 {[%emt 0:04:02][%cal Od3h7] [#] Strongly threatening Bxh7+!} Qc6 {[%emt 0:00:13]} 16. Qc2 {[%emt 0:07:03]} Ne4 {[%emt 0:16:27]} 17. Re1 {[%emt 0:25:04][%cal Rd3e4]} Ng5 {[%emt 0:00:31]} 18. Be2 {[%emt 0:00:06]} Rd7 {[%emt 0:08:32]} 19. h4 {[%emt 0:04:16]} Qe4 {[%emt 0:08:21]} 20. Qxe4 {[%emt 0:18:32]} Nxe4 {[%emt 0:00:08]} 21. Rad1 $132 {[%emt 0:00:06][%mdl 2048] White has counterplay} Rxd1 {[%emt 0:00:18]} 22. Rxd1 {[%emt 0:00:16]} Rd8 {[%emt 0:00:15] Prevents Rd7.} 23. Rxd8+ {[%emt 0:00:19]} Bxd8 {[%emt 0:00:06]} 24. Bd4 {[%emt 0:01:16]} Nd6 {[%emt 0:00:59]} 25. g3 {[%emt 0:01:12]} f6 {[%emt 0:00:21]} 26. Be3 {[%emt 0:00:10]} e5 {[%emt 0:00:55]} 27. Kf1 {[%emt 0:01:39]} Kf7 {[%emt 0:00:45]} 28. Ne1 {[%emt 0:06:05]} b5 {[%emt 0:02:15]} 29. Nd3 {[%emt 0:02:05]} Nc4 {[%emt 0:00:06]} 30. Bc1 {[%emt 0:00:05]} Bb6 {[%emt 0:00:17]} 31. b3 {[%emt 0:00:15]} Nd6 {[%emt 0:00:05]} 32. Nb2 {[%emt 0:00:24]} Ne4 {[%emt 0:01:20]} 33. Nd1 {[%emt 0:00:06]} Bd5 {[%emt 0:05:12]} 34. Bd3 {[%emt 0:02:06]} g6 {[%emt 0:00:20]} 35. Ke2 {[%emt 0:00:08]} Ba5 {[%emt 0:01:27]} 36. Bb2 {[%emt 0:00:21]} Ke6 {[%emt 0:01:34]} 37. Ke3 {[%emt 0:04:59]} (37. Bc2 $11) 37... f5 $17 {[%emt 0:01:07][%cal Bf6f5,Bf5f4][%mdl 32]} 38. Ke2 {[%emt 0:00:58]} f4 {[%emt 0:00:40]} 39. c4 {[%emt 0:00:40]} bxc4 {[%emt 0:01:05]} 40. bxc4 {[%emt 0:00:05]} Bc6 {[%emt 0:00:35] Black is more active.} 41. gxf4 {[%emt 0:00:38]} exf4 {[%emt 0:00:08][%cal Be5f4,Bf4f3][%mdl 32]} 42. Bd4 {[%emt 0:00:52]} f3+ {[%emt 0:01:32]} 43. Kf1 {[%emt 0:00:31]} ({Avoid the trap} 43. Ke3 $2 Bd2+ 44. Kxf3 Nc3+ 45. Kg4 Nxd1 $19) 43... Bd8 {[%emt 0:00:13]} 44. c5 $2 {[%emt 0:00:29][%mdl 8192] This costs White the game.} (44. h5 $17) 44... Kd5 $19 {[%emt 0:01:46]} 45. Be3 {[%emt 0:00:30] [#]} Bb5 {[%emt 0:00:14]} 46. Bxb5 {[%emt 0:00:31]} axb5 {[%emt 0:00:06][%mdl 4096] Endgame KBN-KBN} 47. h5 {[%emt 0:00:20]} gxh5 {[%emt 0:00:47]} 48. Kg1 {[%emt 0:00:38]} Bc7 {[%emt 0:00:23]} 49. Bh6 {[%emt 0:00:33]} Kxc5 {[%emt 0:00:25]} 50. Ne3 {[%emt 0:00:28]} Kd4 {[%emt 0:02:11]} 51. Nf5+ {[%emt 0:00:15]} Kd3 {[%emt 0:00:09] White must now prevent ...Bb6.} 52. Be3 {[%emt 0:00:27] Prevents Bb6.} Be5 {[%emt 0:00:34]} 53. Kf1 {[%emt 0:00:42]} Bf6 {[%emt 0:00:15] aiming for ...b4.} 54. Bb6 {[%emt 0:00:37]} h4 {[%emt 0:01:07][%cal Bh5h4,Bh4h3,Bh3h2][%mdl 32]} 55. Be3 {[%emt 0:00:15]} h3 {[%emt 0:00:33] ( -> ...h2)} 56. Kg1 {[%emt 0:00:43]} Be5 {[%emt 0:00:35]} 57. Bb6 {[%emt 0:00:31]} h2+ {[%emt 0:00:36]} 58. Kh1 {[%emt 0:00:05]} Ke2 {[%emt 0:00:08]} 59. Nh4 {[%emt 0:00:56]} Nxf2+ {[%emt 0:00:21]} 60. Bxf2 {[%emt 0:00:05]} Kxf2 {[%emt 0:00:04]} 61. a4 {[%emt 0:00:12]} b4 {[%emt 0:00:33] Weighted Error Value: White=0.55/Black=0.14 (very precise)} 0-1

[Event "IV Estrellas 2022"]
[Site "La Palma"]
[Date "2022.08.11"]
[Round "8.5"]
[White "Perez Bolanos, David"]
[Black "Pierrot, Facundo"]
[Result "0-1"]
[ECO "D07"]
[WhiteElo "2041"]
[BlackElo "2371"]
[Annotator "TA"]
[PlyCount "124"]
[EventDate "2022.08.06"]
[EventType "swiss"]
[EventCountry "ESP"]
[SourceTitle "playchess.com"]
[Source "ChessBase"]
[SourceQuality "1"]
[TimeControl "5400+30"]

{[%evp 12,124,41,50,52,51,44,45,46,29,31,25,27,30,39,27,55,-61,-76,-66,-57,-66,-35,-41,-33,-34,-39,-75,-71,-152,-156,-185,-179,-190,-191,-220,-214,-225,-213,-241,-217,-224,-220,-232,-191,-194,-155,-191,-187,-369,-166,-125,-142,-144,-91,-89,-89,-95,-85,-85,-85,-85,-85,-91,-85,-86,-91,-92,-92,-92,-92,-98,-92,-108,-104,-100,-92,-94,-96,-124,-85,-86,-88,-86,-85,-85,-88,-93,-67,-108,-100,-114,-114,-125,-125,-144,-124,-159,-159,-179,-179,-179,-178,-179,-179,-179,-179,-179,-179,-179,-179,-12843,-12843,-12843,-12843]} 1. d4 {[%emt 0:02:24]} d5 {[%emt 0:00:16]} 2. c4 {[%emt 0:00:25]} Nc6 {[%emt 0:00:15]} 3. cxd5 {[%emt 0:00:34]} Qxd5 {[%emt 0:00:08]} 4. e3 {[%emt 0:00:07]} e5 {[%emt 0:00:24]} 5. Nc3 {[%emt 0:00:10]} Bb4 {[%emt 0:00:23]} 6. a3 {[%emt 0:00:09]} Bxc3+ {[%emt 0:00:07]} 7. bxc3 {[%emt 0:00:07]} Nf6 {[%emt 0:04:49] D07: Queen's Gambit: Chigorin Defence.} 8. c4 {[%emt 0:00:53]} Qd6 {[%emt 0:00:05][%cal Re5d4]} 9. d5 {[%emt 0:00:46]} Nb8 {[%emt 0:00:05][%cal Bc6b8,Bb8a6,Ba6c5][%mdl 32] White is slightly better.} 10. a4 {[%emt 0:02:12]} Na6 {[%emt 0:00:53]} 11. Nf3 {[%emt 0:13:04] [#]} O-O $146 {[%emt 0:06:25][%cal Bh8f8,Bf8e8,Be8e4][%mdl 32]} ({Predecessor:} 11... Bg4 12. Ba3 Nc5 13. Be2 Bxf3 14. Bxf3 e4 15. Be2 O-O 16. O-O Rfe8 17. a5 Nfd7 {1-0 (78) Aczel,G (2549)-Ghannoum,M (2280) Budapest 2018}) 12. Ba3 {[%emt 0:02:18]} Nc5 {[%emt 0:00:06]} 13. Nd2 {[%emt 0:02:26]} b6 {[%emt 0:04:49]} 14. f3 {[%emt 0:06:10]} (14. e4 $14) 14... e4 $1 $15 {[%emt 0:10:44] Black is more active.} 15. Nxe4 {[%emt 0:06:11]} Nfxe4 {[%emt 0:00:07]} 16. fxe4 {[%emt 0:00:11]} Re8 {[%emt 0:03:13]} 17. Bd3 {[%emt 0:27:05]} Nxd3+ {[%emt 0:07:00]} (17... Qf6 18. Bxc5 Qc3+ 19. Kf2 bxc5 20. Rf1 $11) 18. Qxd3 {[%emt 0:00:12]} Qf6 {[%emt 0:00:03]} 19. Rc1 {[%emt 0:03:58][%cal Oe4e5]} Ba6 {[%emt 0:06:18]} 20. Kd2 {[%emt 0:03:14]} (20. a5 $142) 20... Qg6 $17 {[%emt 0:03:09][%csl LRe4,LRg2]} 21. g3 {[%cal Oe4e5]} Rxe4 {[%emt 0:00:18]} 22. Bb2 {[%emt 0:03:46]} Rae8 {[%emt 0:02:12]} 23. Bd4 {[%emt 0:00:33]} c5 {[%emt 0:02:28]} 24. dxc6 {[%emt 0:01:19]} Qxc6 {[%emt 0:00:16]} 25. Kc3 {[%emt 0:15:32]} Bc8 {[%emt 0:13:14]} ({Weaker is} 25... Qxa4 26. Ra1 Qc6 27. Rxa6 $17) 26. Kb3 {[%emt 0:00:59]} Be6 {[%emt 0:03:03]} ({Worse is} 26... Bd7 27. Kb2) 27. Ka3 {[%emt 0:02:42]} Qd6+ {[%emt 0:02:29]} (27... Bd7 28. Qb3 $17) 28. Kb2 {[%emt 0:02:29]} Bd7 {[%emt 0:03:12][%cal Oe4e3] Threatens to win with ...Rxe3!} ({Not} 28... Qb4+ 29. Qb3 Qe7 30. Qa3 $17) 29. Qc3 {[%emt 0:00:47]} Bxa4 {[%emt 0:00:56]} 30. Ra1 $2 {[%emt 0:01:35] [#]} (30. Rhf1) 30... b5 {[%emt 0:01:04]} (30... Rxd4 $142 $1 {[%mdl 512]} 31. Qxd4 Qb4+ 32. Kc1 Rc8 33. Rxa4 Qxa4) 31. cxb5 $19 {[%emt 0:00:42]} Bxb5 {[%emt 0:00:09] ...Rb8 is the strong threat.} 32. Qc5 {[%emt 0:00:24] [#]} Qxc5 {[%emt 0:05:13]} ({Black should try} 32... Qb8 $1 {Hoping for ...Ba4+.} 33. Qxa7 Qc8) 33. Bxc5 $17 {[%emt 0:00:11]} a6 {[%emt 0:00:01]} 34. Rhc1 {[%emt 0:01:09]} h5 {[%emt 0:01:02]} 35. Bd4 {[%emt 0:01:13]} Kh7 {[%emt 0:02:32]} 36. Rc5 {[%emt 0:00:28]} Kg6 {[%emt 0:00:10]} 37. Rac1 {[%emt 0:00:14]} f6 {[%emt 0:00:53]} 38. R1c2 {[%emt 0:01:07]} R8e7 {[%emt 0:01:05]} 39. Rf2 {[%emt 0:00:26]} h4 {[%emt 0:06:44]} 40. gxh4 {[%emt 0:01:04]} Rxh4 {[%emt 0:00:07]} 41. Rg2+ {[%emt 0:00:10]} Kf7 {[%emt 0:00:08]} 42. Rc1 {[%emt 0:00:08]} Rb7 {[%emt 0:00:59]} 43. Ka3 {[%emt 0:00:38]} Rh5 {[%emt 0:01:17]} 44. Rcg1 {[%emt 0:00:13] [#]} Rh7 {[%emt 0:01:46]} 45. Rc2 {[%emt 0:01:51] Inhibits Bc6.} Bd7 {[%emt 0:00:13]} 46. Rgc1 {[%emt 0:00:38]} Rh5 {[%emt 0:00:22][%cal Rh5a5]} 47. Rc5 {[%emt 0:00:04] Prevents Ra5+.} Rxc5 {[%emt 0:03:43]} 48. Rxc5 {[%emt 0:00:07][%mdl 4096] Endgame KRB-KRB} g5 {[%emt 0:00:06]} 49. Rc2 {[%emt 0:00:33]} f5 {[%emt 0:00:45]} 50. Rg2 {[%emt 0:00:46]} Kg6 {[%emt 0:00:15]} 51. Rc2 {[%emt 0:00:43]} Kh5 {[%emt 0:00:31]} 52. Rg2 {[%emt 0:00:18]} Bc6 {[%emt 0:00:38]} 53. Rg3 {[%emt 0:00:36]} Bd5 {[%emt 0:01:56]} 54. Bf6 {[%emt 0:00:16]} g4 {[%emt 0:00:07]} 55. Be5 {[%emt 0:00:19]} Rb1 {[%emt 0:00:47]} 56. h3 {[%emt 0:00:15]} Bf3 {[%emt 0:00:45]} 57. hxg4+ {[%emt 0:00:06]} fxg4 {[%emt 0:00:05]} 58. Bf4 {[%emt 0:01:04]} Kh4 {[%emt 0:00:33]} 59. Ka2 {[%emt 0:00:08]} Rf1 {[%emt 0:00:27] aiming for ...Bd5+.} 60. Be5 {[%emt 0:00:10]} a5 {[%emt 0:00:28]} 61. Bf4 $2 {[%emt 0:00:12]} (61. Kb3) 61... Bd5+ $19 {[%emt 0:00:14]} 62. Kb2 {[%emt 0:00:15] [#]} Rxf4 $1 {[%emt 0:00:08][%mdl 512] Weighted Error Value: White=0.30/Black=0.10 (very precise)} 0-1

[Event "IV Estrellas 2022"]
[Site "La Palma"]
[Date "2022.08.11"]
[Round "8.6"]
[White "Del Rey, Diego"]
[Black "Estremera Panos, Sergio"]
[Result "1/2-1/2"]
[ECO "D60"]
[WhiteElo "2358"]
[BlackElo "2262"]
[Annotator "TA"]
[PlyCount "34"]
[EventDate "2022.08.06"]
[EventType "swiss"]
[EventCountry "ESP"]
[SourceTitle "playchess.com"]
[Source "ChessBase"]
[SourceQuality "1"]
[TimeControl "5400+30"]

{[%evp 23,34,21,18,0,4,10,29,21,44,8,32,19,91]} 1. d4 {[%emt 0:00:04]} d5 {[%emt 0:00:12]} 2. c4 {[%emt 0:00:12]} e6 {[%emt 0:00:19]} 3. Nf3 {[%emt 0:00:28]} Nf6 {[%emt 0:00:16]} 4. Nc3 {[%emt 0:00:29]} Be7 {[%emt 0:00:25]} 5. Bg5 {[%emt 0:00:22]} O-O {[%emt 0:00:37]} 6. e3 {[%emt 0:00:15]} Nbd7 {[%emt 0:01:03]} 7. Qc2 {[%emt 0:00:58]} c6 {[%emt 0:03:47]} 8. Bd3 {[%emt 0:02:52]} dxc4 {[%emt 0:04:44]} 9. Bxc4 {[%emt 0:00:42]} Nd5 {[%emt 0:00:16]} 10. Bxe7 {[%emt 0:00:50]} Qxe7 {[%emt 0:00:09]} 11. O-O {[%emt 0:00:38]} Nxc3 {[%emt 0:01:53]} 12. Qxc3 {[%emt 0:01:17]} b6 {[%emt 0:01:08]} 13. Rac1 {[%emt 0:01:48] D60: Queen's Gambit Declined: Classical: Unusual White 7th moves.} Bb7 {[%emt 0:00:10]} 14. Be2 {[%emt 0:00:55]} Rac8 {[%emt 0:00:35]} 15. b4 {[%emt 0:00:57]} Ra8 {[%emt 0:21:13]} 16. a3 {[%emt 0:04:15]} a5 {[%emt 0:03:47]} 17. Ra1 {[%emt 0:05:20] [#]} Rac8 $146 {[%emt 0:58:26] Black got outplayed after the opening.  Weighted Error Value: White=0.11 (very precise) /Black=0.13 (very precise)} (17... Nf6 $11) ({Predecessor:} 17... axb4 18. axb4 c5 19. dxc5 bxc5 20. b5 Qf6 21. Qxf6 gxf6 22. Nd2 Rxa1 23. Rxa1 Ra8 24. Rxa8+ Bxa8 25. g4 Kf8 {1-0 (46) Maksimenko,A (2503)-Zontakh,A (2578) Novi Sad 2000}) 1/2-1/2

[Event "IV Estrellas 2022"]
[Site "La Palma"]
[Date "2022.08.11"]
[Round "8.7"]
[White "Brito Garcia, Alfredo"]
[Black "Pulvett Marin, Daniel Eduardo"]
[Result "0-1"]
[ECO "E90"]
[WhiteElo "2291"]
[BlackElo "2523"]
[Annotator "TA"]
[PlyCount "96"]
[EventDate "2022.08.06"]
[EventType "swiss"]
[EventCountry "ESP"]
[SourceTitle "playchess.com"]
[Source "ChessBase"]
[SourceQuality "1"]
[TimeControl "5400+30"]

{[%evp 17,96,65,92,46,90,93,93,53,58,54,49,49,51,49,52,45,43,49,45,47,58,25,27,0,6,0,0,0,2,-17,-31,-17,-23,-28,-27,-29,0,0,71,69,151,0,0,0,0,0,0,0,0,0,39,0,0,0,70,0,5,0,94,0,0,-102,0,-118,-116,-128,-88,-129,-120,-169,-175,-428,-425,-413,-421,-790,-790,-1444,-1434,-1121,-1103]} 1. d4 {[%emt 1:31:00]} Nf6 {[%emt 1:31:00]} 2. c4 {[%emt 0:00:30]} c5 {[%emt 0:00:30]} 3. d5 {[%emt 0:00:30]} d6 {[%emt 0:00:30]} 4. Nc3 {[%emt 0:00:30]} g6 {[%emt 0:00:30]} 5. e4 {[%emt 0:00:30]} Bg7 {[%emt 0:00:30]} 6. h3 {[%emt 0:00:30]} O-O {[%emt 0:00:30]} 7. Nf3 {[%emt 0:00:30]} e6 {[%emt 0:00:30]} 8. Bd3 {[%emt 0:00:30]} Na6 {[%emt 0:00:30]} 9. O-O {[%emt 0:00:30]} e5 $1 {[%emt 0:00:30][%mdl 4] is currently scoring better than 9...Nc7.} 10. Ne1 {[%emt 0:00:30] [#] E90: King's Indian: Classical: Early deviations and 6 h3.} (10. Bg5 $16) 10... Kh8 $146 {[%emt 0:00:30]} ({Predecessor:} 10... Nh5 11. Qf3 Nc7 12. g4 Nf6 13. Ng2 h5 14. g5 Nh7 15. Qg3 Qd7 16. Kh2 a6 17. a4 b6 {½-½ (26) Van der Velden,B (2176)-Miettinen,T (2021) Leiden 2019}) 11. a3 {[%emt 0:00:30]} Nh5 {[%emt 0:00:30]} 12. Be2 {[%emt 0:00:30] White is better.} Nf4 {[%emt 0:00:30]} 13. Bf3 {[%emt 0:00:30]} Qg5 {[%emt 0:00:30]} 14. Kh2 {[%emt 0:00:30] Hoping for g3.} Qe7 {[%emt 0:00:30]} 15. Nd3 {[%emt 0:00:30]} Nxd3 {[%emt 0:00:30]} 16. Qxd3 {[%emt 0:00:30]} f5 {[%emt 0:00:30]} 17. Bd2 {[%emt 0:00:30]} f4 {[%emt 0:00:30]} 18. Rh1 {[%emt 0:00:30]} Nc7 {[%emt 0:00:30][%cal Ba6c7,Bc7e8,Be8f6][%mdl 32]} 19. Kg1 {[%emt 0:00:30]} Ne8 {[%emt 0:00:30]} 20. Kf1 {[%emt 0:00:30]} Nf6 {[%emt 0:00:30]} 21. Ke1 {[%emt 0:00:30]} Bd7 {[%emt 0:00:30]} 22. Kd1 {[%emt 0:00:30]} a6 {[%emt 0:00:30][%cal Ob7b5]} 23. Kc2 {[%emt 0:00:30]} b5 {[%emt 0:00:30]} 24. a4 {[%emt 0:00:30][%cal Ra4b5]} (24. cxb5 axb5 25. b4 (25. Nxb5 $2 c4 $19) 25... Rfc8 $17) 24... bxc4 {[%emt 0:00:30]} 25. Qxc4 {[%emt 0:00:30]} Rfb8 {[%emt 0:00:30]} 26. Nb1 $1 {[%emt 0:00:30]} Qe8 {[%emt 0:00:30]} 27. Ba5 {[%emt 0:00:30]} Rb4 {[%emt 0:00:30]} 28. Bxb4 $16 {[%emt 0:00:30]} Bxa4+ {[%emt 0:00:30]} (28... cxb4 $14 29. Qb3 (29. Qxb4 Nxd5 30. exd5 Rb8 $16) 29... Qc8+ 30. Kd1 Qc5) 29. Kc1 $2 {[%emt 0:00:30]} (29. b3 Bb5 30. Qc3 Nxd5 31. exd5 cxb4 32. Qxb4 (32. Qc7 $2 Rc8 $19) 32... e4 33. Qxe4 (33. Nc3 $2 Rc8 $19) 33... Rc8+ 34. Kd2 Qxe4 35. Bxe4 Bxa1 $15) (29. Kd2 $1 $16 Bb5 30. Qb3 cxb4 31. Qxb4) 29... Bb5 $11 {[%emt 0:00:30]} 30. Qb3 {[%emt 0:00:30]} cxb4 {[%emt 0:00:30]} 31. Qxb4 {[%emt 0:00:30]} Nd7 $1 {[%emt 0:00:30]} 32. Kd2 {[%emt 0:00:30]} (32. Qxd6 $2 Bf8 33. Qe6 Qc8+ 34. Nc3 Bb4 $19) 32... Nc5 {[%emt 0:00:30]} 33. Rc1 {[%emt 0:00:30]} Rb8 {[%emt 0:00:30]} 34. Rxc5 {[%emt 0:00:30]} (34. Qa3 $5 {[%cal Rb2b4]}) 34... dxc5 {[%emt 0:00:30]} 35. Qc3 {[%emt 0:00:30]} Ba4 {[%emt 0:00:30]} ({Black should try} 35... Bf8 $11) 36. Kc1 {[%emt 0:00:30]} (36. Bd1 $14 f3 37. gxf3 (37. Rxa4 $2 fxg2 38. Qg3 Rxb2+ 39. Ke1 Rxb1 $19)) 36... Rb4 {[%emt 0:00:30]} 37. Na3 {[%emt 0:00:30]} Rd4 {[%emt 0:00:30]} (37... Kg8 $11) 38. Kb1 {[%emt 0:00:30]} ({Better is} 38. Qa5 $16) 38... Qb8 {[%emt 0:00:30]} 39. Ka2 {[%emt 0:00:30] Against Bb3+} (39. Nc2 $11 {remains equal.}) 39... Rxd5 {[%emt 0:00:30] Black is much more active.} 40. Rc1 {[%emt 0:00:30]} (40. exd5 e4 41. Qd2 exf3 42. gxf3 Qb3+ 43. Kb1 c4 $19) (40. b3 $1 $11 Bd7 41. exd5) 40... Rd4 $17 {[%emt 0:00:30][%cal Bd5d4,Bd4b4,Bb4b3,Bb3b2,Bb2b1][%mdl 32]} 41. Qxc5 {[%emt 0:00:30]} Bb3+ $1 {[%emt 0:00:30]} 42. Kb1 {[%emt 0:00:30]} Bg8 $1 {[%emt 0:00:30] A strong pair of Bishops.} 43. Rc3 {[%emt 0:00:30] [#]} (43. Qc2 $17) 43... Rb4 $1 $19 {[%emt 0:00:30]} ({Inferior is} 43... Rd2 44. Rc2 Rxc2 45. Nxc2 $17) 44. Rc2 $2 {[%emt 0:00:30] [#]} (44. Nc4) 44... Bf8 $1 {[%emt 0:00:30]} 45. Qa5 {[%emt 0:00:30]} Rb3 {[%emt 0:00:30] ...Rxa3 is the strong threat.} 46. Nc4 {[%emt 0:00:30]} (46. Kc1 $142 Bxa3 47. Qxa6) 46... Bxc4 {[%emt 0:00:30]} 47. Rxc4 {[%emt 0:00:30]} Rxb2+ {[%emt 0:00:30]} 48. Kc1 {[%emt 0:00:30]} Rb1+ {[%emt 0:00:30] Weighted Error Value: White=0.48/Black=0.17 (very precise)} 0-1

[Event "IV Estrellas 2022"]
[Site "La Palma"]
[Date "2022.08.11"]
[Round "8.8"]
[White "Antic, Dejan"]
[Black "Amador Garcia, Ismael"]
[Result "1/2-1/2"]
[ECO "D45"]
[WhiteElo "2452"]
[BlackElo "2128"]
[Annotator "TA"]
[PlyCount "102"]
[EventDate "2022.08.06"]
[EventType "swiss"]
[EventCountry "ESP"]
[SourceTitle "playchess.com"]
[Source "ChessBase"]
[SourceQuality "1"]
[TimeControl "5400+30"]

{[%evp 20,102,13,15,17,40,20,0,0,0,11,7,28,10,35,34,54,66,85,82,79,79,64,57,73,77,69,77,77,72,86,82,89,87,110,100,157,175,168,157,172,168,196,214,214,149,183,155,145,156,148,104,114,109,125,83,79,45,46,36,50,17,17,10,55,56,66,0,0,0,0,0,0,0,0,0,0,0,0,0,0,0,0,0,0]} 1. d4 {[%emt 0:00:05]} Nf6 {[%emt 0:00:04]} 2. Nf3 {[%emt 0:00:14]} e6 {[%emt 0:01:39]} 3. c4 {[%emt 0:01:22]} d5 {[%emt 0:00:04]} 4. Nc3 {[%emt 0:01:11]} c6 {[%emt 0:00:38]} 5. e3 {[%emt 0:01:02]} Nbd7 {[%emt 0:03:13]} 6. Qc2 {[%emt 0:00:34]} Be7 {[%emt 0:05:19]} 7. b3 {[%emt 0:02:48]} O-O {[%emt 0:01:02]} 8. Be2 {[%emt 0:03:29]} b6 {[%emt 0:00:44]} 9. O-O {[%emt 0:00:27]} Bb7 {[%emt 0:00:02]} 10. Bb2 {[%emt 0:00:20]} Rc8 {[%emt 0:02:19]} 11. Rad1 {[%emt 0:02:28]} c5 {[%emt 0:06:50] D45: Semi-Slav: 5 e3.} 12. cxd5 {[%emt 0:12:23]} exd5 {[%emt 0:10:47] [#]} 13. Qb1 $146 {[%emt 0:04:12]} (13. Qf5 {is more complex.} a6 14. dxc5 Nxc5 15. Ng5) ({Predecessor:} 13. dxc5 Nxc5 14. Qf5 g6 15. Qh3 h5 16. Ng5 Rc7 17. Nb5 Bc8 18. Qg3 Rd7 19. Bf3 {0-1 (46) Shishkov,A (2405)-Antonio,J (2277) Chess.com INT 2021}) 13... Re8 {[%emt 0:04:38]} 14. Rfe1 {[%emt 0:02:14]} cxd4 {[%emt 0:01:22]} 15. Nxd4 {[%emt 0:02:05]} Bb4 {[%emt 0:02:47]} 16. Qa1 {[%emt 0:05:22]} Ne5 {[%emt 0:05:28]} 17. a3 {[%emt 0:04:16]} Bxc3 {[%emt 0:01:55]} 18. Bxc3 {[%emt 0:02:39]} Ne4 {[%emt 0:00:08] [#]} 19. Bb2 {[%emt 0:05:14] This bishop pair is nice.} Qh4 {[%emt 0:01:47]} 20. Rf1 {[%emt 0:03:30]} Nc5 {[%emt 0:07:16]} 21. b4 {[%emt 0:07:59]} Na4 {[%emt 0:00:40]} 22. Nf3 {[%emt 0:00:20]} Nxf3+ {[%emt 0:00:06]} 23. Bxf3 {[%emt 0:00:06]} Nxb2 {[%emt 0:00:59]} 24. Qxb2 {[%emt 0:00:06]} h6 {[%emt 0:01:42]} 25. Bxd5 {[%emt 0:01:41]} Bxd5 {[%emt 0:00:55]} 26. Rxd5 {[%emt 0:00:06]} Qc4 {[%emt 0:01:15]} 27. Rd7 {[%emt 0:00:37]} Red8 {[%emt 0:02:28]} (27... a5 $142) 28. Rxa7 $16 {[%emt 0:08:01] White is more active.} Rd5 {[%emt 0:00:50]} 29. h3 {[%emt 0:01:21]} h5 {[%emt 0:01:18]} 30. Re7 {[%emt 0:02:05]} Rcd8 {[%emt 0:03:26]} 31. Qc1 {[%emt 0:04:24]} Qe2 {[%emt 0:02:39]} 32. Qe1 {[%emt 0:01:48]} Qb2 {[%emt 0:00:44]} 33. Qb1 {[%emt 0:01:00]} Qxa3 {[%emt 0:04:07]} 34. Qe4 {[%emt 0:00:10] [#] Threatens to win with Re8+.} g6 {[%emt 0:00:47]} 35. Qf4 {[%emt 0:02:19]} Rf8 {[%emt 0:00:57]} 36. Qc4 {[%emt 0:00:39]} Qa8 {[%emt 0:07:27]} 37. e4 {[%emt 0:00:55]} Rd2 {[%emt 0:01:29]} 38. Qb5 {[%emt 0:03:36]} Qd8 {[%emt 0:01:12]} 39. Rb7 {[%emt 0:00:37]} Rd1 {[%emt 0:01:15]} 40. Rxd1 {[%emt 0:01:42]} ({Wrong is} 40. Rxb6 $2 Rxf1+ 41. Qxf1 Qxb6 $19) 40... Qxd1+ $14 {[%emt 0:00:02][%mdl 4096] Endgame KQR-KQR} 41. Kh2 {[%emt 0:00:07]} Qd6+ {[%emt 0:00:15]} 42. e5 {[%emt 0:01:23]} Qd4 {[%emt 0:01:15] And now ...Qf4+ would win.} 43. Qxb6 {[%emt 0:02:37]} (43. Rxb6 $14 Qf4+ 44. Kg1) 43... Qxe5+ $11 {[%emt 0:00:08] The position is equal.} 44. g3 {[%emt 0:00:05]} h4 {[%emt 0:00:13]} 45. Qe3 {[%emt 0:00:27]} Qxe3 {[%emt 0:01:07]} 46. fxe3 {[%emt 0:00:07] KR-KR} Re8 {[%emt 0:00:02]} 47. gxh4 {[%emt 0:01:44][%cal Oh4h5]} Rxe3 {[%emt 0:00:02]} 48. Rc7 {[%emt 0:03:23]} Rb3 {[%emt 0:00:20]} 49. Rc4 {[%emt 0:00:05]} Kg7 {[%emt 0:00:31]} 50. Kg2 {[%emt 0:00:14]} Kf6 {[%emt 0:00:38]} 51. Kf2 {[%emt 0:00:42]} Ke5 {[%emt 0:00:46] Black escapes into a draw.  Weighted Error Value: White=0.11 (very precise) /Black=0.09 (flawless)} 1/2-1/2